{"text_format":"1","workbook":"xlsx","n_sheets":1,"sheets":["Communication Log"],"not_rendered":{"charts":0,"images":3,"macros":1,"external_links":0,"defined_names":2,"comments":0,"pivot_tables":0},"unopened":[],"bounds":{"document_bytes":16777216,"sheet_cells":100000,"rows_first":2000,"rows_last":500,"rows_between":2000,"halvings":0,"cell_chars":16384,"cell_head_chars":4096},"cells_cut":0,"cells_raw":0,"read":"whole","date_system":"1900"}

{"sheet":"Communication Log","index":0,"n_rows":99,"n_cols":10,"rows_kept":99,"cut":false,"hidden":false,"merged":[[0,0,0,5],[19,0,19,5],[2,1,2,2],[3,1,3,2],[4,1,4,2],[2,4,2,5],[3,4,3,5],[4,4,4,5],[52,0,52,5],[53,3,53,5],[93,3,93,5],[66,3,66,5],[67,3,67,5],[68,3,68,5],[54,3,54,5],[55,3,55,5],[56,3,56,5],[57,3,57,5],[58,3,58,5],[59,3,59,5],[92,3,92,5],[81,3,81,5],[82,3,82,5],[83,3,83,5],[69,3,69,5],[70,3,70,5],[71,3,71,5],[72,3,72,5],[73,3,73,5],[91,3,91,5],[86,3,86,5],[87,3,87,5],[88,3,88,5],[89,3,89,5],[60,3,60,5],[61,3,61,5],[62,3,62,5],[63,3,63,5],[90,3,90,5],[85,3,85,5],[74,3,74,5],[75,3,75,5],[76,3,76,5],[77,3,77,5],[78,3,78,5],[79,3,79,5],[80,3,80,5],[84,3,84,5],[64,3,64,5],[65,3,65,5],[47,1,47,5],[48,1,48,5],[39,1,39,5],[40,1,40,5],[41,1,41,5],[42,1,42,5],[43,1,43,5],[20,0,20,3],[21,1,21,5],[28,1,28,5],[29,1,29,5],[30,1,30,5],[23,1,23,5],[24,1,24,5],[22,1,22,5],[25,1,25,5],[27,1,27,5],[96,1,96,2],[97,1,97,2],[98,1,98,3],[32,0,32,3],[26,0,26,3],[31,1,31,5],[33,1,33,5],[34,1,34,5],[35,1,35,5],[36,1,36,5],[37,1,37,5],[44,0,44,3],[38,0,38,3],[49,1,49,5],[45,1,45,5],[46,1,46,5]]}
["COMMUNICATION LOG"]
["Facility ID: ",null,null,"Current PO#: "]
["Facility Name: ",null,null,"Site Manager: "]
["Facility Address: ",null,null,"Team Leader: "]
[null,null,null,"Team/LP: "]
[]
["Discharge(s): ","Date","Program","Score"]
[null,null,null,null,null,null,null,{"$f":"OR(B8<>\"\",C8<>\"\",D8<>\"\")","v":false}]
[null,null,null,null,null,null,null,{"$f":"OR(B9<>\"\",C9<>\"\",D9<>\"\")","v":false}]
[null,null,null,null,null,null,null,false]
[null,null,null,null,null,null,null,false]
[null,null,null,null,null,null,null,false]
[null,null,null,null,null,null,null,false]
[null,null,null,null,null,null,null,false]
[null,null,null,null,null,null,null,false]
[null,null,null,null,null,null,null,false]
[null,null,null,null,null,null,null,false]
[]
[]
["Owner/Responsible Party Information"]
[" Person 1",null,null,null,"Current Owner?",null,null,{"$f":"TRUE","v":true}]
["Name & Title: ",null,null,null,null,null,null,{"$f":"TRUE","v":true},null,{"$f":"B22","v":0}]
["Company: ",null,null,null,null,null,null,{"$f":"TRUE","v":true},null,{"$f":"B23","v":0}]
["Address: ",null,null,null,null,null,null,{"$f":"TRUE","v":true},null,0]
["Phone: ",null,null,null,null,null,null,{"$f":"TRUE","v":true},null,0]
["Email: ",null,null,null,null,null,null,{"$f":"TRUE","v":true},null,0]
[" Person 2",null,null,null,"Current Owner?",null,null,{"$f":"OR(B28<>\"\",B29<>\"\",B30<>\"\",B31<>\"\",B32<>\"\")","v":false}]
["Name & Title: ",null,null,null,null,null,null,{"$f":"$H$27","v":false},null,{"$f":"B28","v":0}]
["Company: ",null,null,null,null,null,null,{"$f":"$H$27","v":false},null,{"$f":"B29","v":0}]
["Address: ",null,null,null,null,null,null,{"$f":"$H$27","v":false},null,0]
["Phone: ",null,null,null,null,null,null,{"$f":"$H$27","v":false},null,0]
["Email: ",null,null,null,null,null,null,{"$f":"$H$27","v":false},null,0]
[" Person 3",null,null,null,"Current Owner?",null,null,{"$f":"OR(B34<>\"\",B35<>\"\",B36<>\"\",B37<>\"\",B38<>\"\")","v":false}]
["Name & Title: ",null,null,null,null,null,null,{"$f":"$H$33","v":false},null,{"$f":"B34","v":0}]
["Company: ",null,null,null,null,null,null,{"$f":"$H$33","v":false},null,{"$f":"B35","v":0}]
["Address: ",null,null,null,null,null,null,{"$f":"$H$33","v":false},null,0]
["Phone: ",null,null,null,null,null,null,{"$f":"$H$33","v":false},null,0]
["Email: ",null,null,null,null,null,null,{"$f":"$H$33","v":false},null,0]
[" Person 4",null,null,null,"Current Owner?",null,null,{"$f":"OR(B40<>\"\",B41<>\"\",B42<>\"\",B43<>\"\",B44<>\"\")","v":false}]
["Name & Title: ",null,null,null,null,null,null,{"$f":"$H$39","v":false},null,{"$f":"B40","v":0}]
["Company: ",null,null,null,null,null,null,{"$f":"$H$39","v":false},null,{"$f":"B41","v":0}]
["Address: ",null,null,null,null,null,null,{"$f":"$H$39","v":false},null,0]
["Phone: ",null,null,null,null,null,null,{"$f":"$H$39","v":false},null,0]
["Email: ",null,null,null,null,null,null,{"$f":"$H$39","v":false},null,0]
[" Person 5",null,null,null,"Current Owner?",null,null,{"$f":"OR(B46<>\"\",B47<>\"\",B48<>\"\",B49<>\"\",B50<>\"\")","v":false}]
["Name & Title: ",null,null,null,null,null,null,{"$f":"$H$45","v":false},null,{"$f":"B46","v":0}]
["Company: ",null,null,null,null,null,null,{"$f":"$H$45","v":false},null,{"$f":"B47","v":0}]
["Address: ",null,null,null,null,null,null,{"$f":"$H$45","v":false},null,0]
["Phone: ",null,null,null,null,null,null,{"$f":"$H$45","v":false},null,0]
["Email: ",null,null,null,null,null,null,{"$f":"$H$45","v":false},null,0]
[]
[]
["Contact Attempts"]
["Date","Person Contacted","Method","Conversation Details"]
[null,null,null,null,null,null,null,{"$f":"OR(A55<>\"\",B55<>\"\",C55<>\"\",D55<>\"\")","v":false},{"$f":"D55","v":0}]
[null,null,null,null,null,null,null,{"$f":"OR(A56<>\"\",B56<>\"\",C56<>\"\",D56<>\"\")","v":false},{"$f":"D56","v":0}]
[null,null,null,null,null,null,null,false,0]
[null,null,null,null,null,null,null,false,0]
[null,null,null,null,null,null,null,false,0]
[null,null,null,null,null,null,null,false,0]
[null,null,null,null,null,null,null,false,0]
[null,null,null,null,null,null,null,false,0]
[null,null,null,null,null,null,null,false,0]
[null,null,null,null,null,null,null,false,0]
[null,null,null,null,null,null,null,false,0]
[null,null,null,null,null,null,null,false,0]
[null,null,null,null,null,null,null,false,0]
[null,null,null,null,null,null,null,false,0]
[null,null,null,null,null,null,null,false,0]
[null,null,null,null,null,null,null,false,0]
[null,null,null,null,null,null,null,false,0]
[null,null,null,null,null,null,null,false,0]
[null,null,null,null,null,null,null,false,0]
[null,null,null,null,null,null,null,false,0]
[null,null,null,null,null,null,null,false,0]
[null,null,null,null,null,null,null,false,0]
[null,null,null,null,null,null,null,false,0]
[null,null,null,null,null,null,null,false,0]
[null,null,null,null,null,null,null,false,0]
[null,null,null,null,null,null,null,false,0]
[null,null,null,null,null,null,null,false,0]
[null,null,null,null,null,null,null,false,0]
[null,null,null,null,null,null,null,false,0]
[null,null,null,null,null,null,null,false,0]
[null,null,null,null,null,null,null,false,0]
[null,null,null,null,null,null,null,false,0]
[null,null,null,null,null,null,null,false,0]
[null,null,null,null,null,null,null,false,0]
[null,null,null,null,null,null,null,false,0]
[null,null,null,null,null,null,null,false,0]
[null,null,null,null,null,null,null,false,0]
[null,null,null,null,null,null,null,false,0]
[null,null,null,null,null,null,null,false,0]
[null,null,null,null,null,null,null,false,0]
[]
[]
["Reviewed by ",{"$f":"IF(E4<>\"\", E4, \"[add 'Team Leader' at top of sheet]\")","v":"[add 'Team Leader' at top of sheet]"},null,":"]
[null,"Team Leader"]
["Review Date: ",{"$f":"IF(H99=TRUE,TODAY(),\"\")","v":""},null,null,null,null,null,false]